Cogmind - Beta 14 @@@ ROGUE MODE // 2024.08.13 @ 14:20:37 Player: Zaros426 Result: Destroyed by G-34 Mercenary with Small Laser Performance ------------- Evolutions (0) 0 Regions Visited (1) 200 Robots Destroyed (10) 50 Value Destroyed (216) 216 Prototype IDs (2) 40 Alien Tech Used (0) 0 Bonus (0) 0 TOTAL SCORE: 506 Bonus ------- None Cogmind --------- Core Integrity 0/250 Matter 282/300 Energy 100/100 System Corruption 0% Temperature Cool (6) Movement Core (100) Ox1 Location -10/Materials Parts ------- > --- POWER (1) -------- (None) > --- PROPULSION (2) --- (None) > --- UTILITY (2) ------ Small Storage Unit > --- WEAPON (2) ------- (None) > --- INVENTORY (8) ---- Ion Engine Structural Scanner Structural Scanner Signal Interpreter Seismic Detector Peak State ------------ > --- POWER ------------ Light Nuclear Core > --- PROPULSION ------- Light Treads Light Treads > --- UTILITY ---------- Small Storage Unit Targeting Computer > --- WEAPON ----------- Assault Rifle > --- INVENTORY -------- Seismic Detector [Rating: 8] Favorites ----------- Power Light Nuclear Core Engine Ion Engine Power Core Light Nuclear Core Propulsion Light Treads Treads Light Treads Utility Small Storage Unit Device Seismic Detector Storage Small Storage Unit Processor Targeting Computer Weapon Assault Rifle Ballistic Gun Assault Rifle Build | -11 -10 ------- Run | Yrd Mat Slots Evolved . | . . Power . | . . Propulsion . | . . Utility . | . . Weapon . | . . Parts Attached 11 | 8 3 Power 3 | 2 1 Engine 2 | 2 . Core 1 | . 1 Reactor . | . . Propulsion 3 | 2 1 Treads 3 | 2 1 Leg . | . . Wheel . | . . Hover . | . . Flight . | . . Utility 4 | 3 1 Device 1 | 1 . Storage 2 | 2 . Processor 1 | . 1 Hackware . | . . Protection . | . . Artifact . | . . Weapon 1 | 1 . Energy Gun . | . . Energy Cannon . | . . Ballistic Gun 1 | 1 . Ballistic Cannon . | . . Launcher . | . . Special Weapon . | . . Impact Weapon . | . . Slashing Weapon . | . . Piercing Weapon . | . . Special Melee Weapon . | . . Unidentified Prototypes . | . . Parts Lost 5 | . 5 Power 1 | . 1 Propulsion 2 | . 2 Utility 1 | . 1 Weapon 1 | . 1 Highest Loss Streak 5 | . 5 To Critical Strikes . | . . Average Slot Usage (%) 79 | . 79 Engine 2 | . 2 Core 10 | . 10 Treads 25 | . 25 Device 1 | . 1 Storage 14 | . 14 Processor 12 | . 12 Ballistic Gun 12 | . 12 Peak Build Rating 8 | 6 8 Average Rating 6 | 4 7 On Entrance 3 | . 6 Naked Turns . | . . Heaviest Build 13 | 13 13 Greatest Support 40 | 40 40 Greatest Overweight (x) 1 | . 1 Average Overweight (x) . | . . Largest Inventory Capacity 8 | 8 8 Average Capacity 7 | 7 8 Most Carried 5 | 2 5 Average Carried 2 | . 3 Final Capacity 8 | 8 8 Final Carried 5 | . 5 Class Distribution -------------------- 100% | Mutant Dominant Class ---------------- Mutant | -10/Materials Resources | -11 -10 ----------- Run | Yrd Mat Matter Collected 447 | 253 194 Remotely . | . . Salvage Created 288 | 45 243 Parts 24 | 8 16 Haulers Intercepted . | . . Recyclers Shooed 2 | . 2 Parts Field Recycled . | . . Retrieved Matter . | . . Parts Self-Destructed . | . . Prevented . | . . Kills | -11 -10 ------- Run | Yrd Mat Combat Hostiles Destroyed 7 | . 7 Melee 1 | . 1 Guns 6 | . 6 Classes Destroyed 5 | 2 3 Worker 1 | 1 . Tunneler 1 | 1 . Watcher 1 | . 1 Swarmer 3 | . 3 Grunt 4 | . 4 Best Kill Streak 2 | 1 2 Combat Bots Only 2 | . 2 Max Kills in Single Turn 1 | 1 1 Gunslinging . | . . Exploded . | . . Melee 1 | . 1 Uniques/NPCs Destroyed . | . . Combat | -11 -10 -------- Run | Yrd Mat Hostile Shots Fired 82 | . 82 Missed 21 | . 21 Damage Taken 766 | . 766 Core 261 | . 261 Absorbed by Shields . | . . Core Remaining (%) 100 | 100 . Volleys Fired 77 | 5 72 Largest 1 | 1 1 Hottest 20 | 20 20 Shots Fired 77 | 5 72 Gun 77 | 5 72 Cannon . | . . Launcher . | . . Special . | . . Kinetic 77 | 5 72 Thermal . | . . Explosive . | . . Electromagnetic . | . . Robot Hit Streak 15 | 2 15 Robot Miss Streak 7 | 1 7 Penetration Max . | . . Secondary Targets . | . . Shots Hit Robots 54 | 3 51 Core Hits 22 | 2 20 Critical Kills . | . . Critical Parts Destroyed . | . . Critical Strikes . | . . Melee Attacks . | . . Impact . | . . Slashing . | . . Piercing . | . . Sneak Attacks . | . . Combat Hostiles . | . . Follow-up Attacks . | . . Damage Inflicted 713 | 41 672 Guns 688 | 41 647 Cannons . | . . Explosions . | . . Melee . | . . Ramming 25 | . 25 Kinetic 688 | 41 647 Thermal . | . . Explosive . | . . Electromagnetic . | . . Impact . | . . Slashing . | . . Piercing . | . . Highest Corruption . | . . Average Corruption . | . . Corruption Purged . | . . Corruption Blocked . | . . Overload Shots . | . . Overflow Damage . | . . Projectiles . | . . Explosions . | . . Melee . | . . Knockbacks 1 | . 1 Impact 1 | . 1 Kinetic . | . . Secondary . | . . Self-Inflicted Damage 7 | . 7 Shots . | . . Rammed 17 | . 17 Targets Rammed 17 | . 17 Kicked . | . . Crushed . | . . Highest Temperature 18 | . 18 Average Temperature 6 | . 6 Received Heat Transfer 387 | . 387 Siege Activations . | . . Robots Corrupted . | . . Combat Hostiles . | . . Parts Fried . | . . Impact Corruptions . | . . Robots Melted . | . . Combat Hostiles . | . . Parts Melted . | . . Heat Transferred . | . . Parts Sabotaged . | . . Parts Stolen . | . . Parts Stripped . | . . Power Chain Reactions . | . . Alert | -11 -10 ------- Run | Yrd Mat Peak Influence 198 | 10 198 Initial 6 | . 6 Average 61 | 2 72 Maximum Alert Level . | . . Low Security (%) 100 | 100 100 Level 1 . | . . Level 2 . | . . Level 3 . | . . Level 4 . | . . Level 5 . | . . High Security . | . . Max Security . | . . Squads Dispatched . | . . Investigation . | . . Extermination . | . . Reinforcement . | . . Assault . | . . Garrison . | . . Intercept . | . . Searches Triggered . | . . Construction Impeded . | . . Haulers Reinforced . | . . Active Scanning Responses . | . . Cargo Convoy Interrupts . | . . Stealth | -11 -10 --------- Run | Yrd Mat Distress Signals 2 | . 2 Communications Jammed . | . . Distress Signals . | . . Times Spotted 14 | . 14 Peak Tracking Total 3 | . 3 Tactical Retreats . | . . Traps | -11 -10 ------- Run | Yrd Mat Traps Triggered 1 | . 1 Indirectly . | . . Trap Hack Attempts . | . . Triggered . | . . Disarmed . | . . Reprogrammed . | . . Reused . | . . Traps Extracted . | . . Installed . | . . Triggered . | . . Machines | -11 -10 ---------- Run | Yrd Mat Machines Disabled . | . . Max in Single Turn . | . . Machines Repaired . | . . Machines Dismantled . | . . Machines Sabotaged . | . . Overloaded Fab Kills . | . . Hacking | -11 -10 --------- Run | Yrd Mat Machines Accessed 4 | . 4 Terminals 4 | . 4 Fabricators . | . . Repair Stations . | . . Recycling Units . | . . Scanalyzers . | . . Garrison Access . | . . Total Hacks 10 | . 10 Successful 3 | . 3 Failed 7 | . 7 Catastrophic 2 | . 2 Database Lockouts . | . . Manual 8 | . 8 Terminals 10 | . 10 Fabricators . | . . Repair Stations . | . . Recycling Units . | . . Scanalyzers . | . . Garrison Access . | . . Terminal Hacks 2 | . 2 Prototype ID Bank 1 | . 1 Locate Traps 1 | . 1 Fabricator Hacks . | . . Repair Station Hacks . | . . Recycling Unit Hacks . | . . Scanalyzer . | . . Garrison Access Hacks . | . . Unauthorized Hacks 1 | . 1 Terminals 1 | . 1 Botnet 1 | . 1 Fabricators . | . . Repair Stations . | . . Recycling Units . | . . Scanalyzers . | . . Garrison Access . | . . Data Cores Recovered . | . . Used . | . . Hacking Detections 4 | . 4 Full Trace Events . | . . Feedback Events . | . . Feedback Blocked . | . . Robot Schematics Acquired . | . . Robots Built . | . . Authchips . | . . Time . | . . Total Robot Build Rating . | . . Part Schematics Acquired . | . . Parts Built . | . . Authchips . | . . Time . | . . Total Part Build Rating . | . . Parts Repaired . | . . Time . | . . Parts Recycled . | . . Recycled Matter . | . . Retrieved Matter . | . . Retrieved Components . | . . Parts Scanalyzed . | . . Part Schematics Acquired . | . . Parts Damaged . | . . Bothacking | -11 -10 ------------ Run | Yrd Mat Used RIF Installer . | . . Robots Hacked . | . . Non-combat . | . . Combat . | . . Robot Hacks Applied . | . . Relay Couplers Released . | . . Fabnet Peak Effective % . | . . Robots Rewired . | . . Allies Hacked . | . . Hacks Repelled . | . . Allies | -11 -10 -------- Run | Yrd Mat Total Allies . | . . Largest Group . | . . Highest-Rated Group . | . . Highest-Rated Ally . | . . Total Orders . | . . Ally Attacks . | . . Total Damage . | . . Kills . | . . Allies Corrupted . | . . Allies Melted . | . . Intel | -11 -10 ------- Run | Yrd Mat Robot Analysis Total . | . . Derelict Logs Recovered . | . . Drone Launches . | . . Drone Recoveries . | . . Exploration | -11 -10 ------------- Run | Yrd Mat Turns Passed 719 | 115 604 Spaces Moved 323 | 60 263 Core 6 | 2 4 Treads 317 | 58 259 Legs . | . . Wheels . | . . Hover . | . . Flight . | . . Fastest Speed 50 | 50 100 Average Speed 158 | 156 159 Slowest Speed 160 | 160 160 Overloaded Moves . | . . Propulsion Burnouts . | . . Robots Hopped . | . . Cave-ins Triggered . | . . Exploration Rate (%) 28 | 6 50 Regions Visited 1 Branch Regions . Pre-discovered Areas . | . . Known Exits Taken . | . . Unknown Exits Taken 1 | 1 . Scrap Searched . | . . Spaces Dug . | . . Terrain Destroyed . | . . Melee . | . . Projectile . | . . AOE . | . . Terrain Rammed . | . . Walls Destroyed . | . . Machines Disabled . | . . Actions | -11 -10 --------- Run | Yrd Mat Total 448 | 74 374 Wait 14 | . 14 Move 322 | 59 263 Hop . | . . Pick Up 5 | . 5 Fast Attach 7 | 6 1 Attach 1 | 1 . Detach 1 | 1 . Swap 3 | 1 2 Drop 1 | 1 . Fire 77 | 5 72 Melee . | . . Ram 15 | . 15 Kick . | . . Crush 2 | . 2 Escape Stasis . | . . Rewire . | . . Trap . | . . Miscellaneous . | . . Route ------- -11/Scrapyard -10/Materials (discovered 2 exits: [*Mat] / [*Min]) History --------- Turn | Location | Event 23 | -11/Scrapyard | Discovered new exit (range 15) 116 | -11/Scrapyard | Entered Materials 301 | -10/Materials | Build established: Mutant 322 | -10/Materials | Discovered new exit (range 12) 571 | -10/Materials | Discovered new exit (range 13) 687 | -10/Materials | Core integrity fell below 50% 709 | -10/Materials | Core integrity fell below 20% 720 | -10/Materials | Destroyed by G-34 Mercenary with Small Laser Last Messages --------------- 00667_ Critical hit (Burn: +37). 00668_ Slammed into G-47 Trooper. 00673_ Lgt. Treads destroyed. 00700_ Slammed into G-34 Mercenary. 00701_ Lgt. Treads destroyed. 00702_ Slammed into G-47 Trooper. 00703_ Targeting Computer destroyed. 00703_ Slammed into G-47 Trooper. 00706_ G-47 Trooper destroyed. [Achievement: Fist Fight] 00706_ K-01 Serf collects debris. 00707_ Acquired 60 matter. 00707_ R-06 Scavenger collects Aluminum Leg. 00708_ Slammed into G-34 Mercenary. 00711_ K-01 Serf collects debris. 00715_ Slammed into G-34 Mercenary. 00718_ K-01 Serf collects debris. 00719_ Slammed into G-34 Mercenary. 00719_ G-34 Mercenary knocked back. 00720_ Slammed into G-34 Mercenary. Map ----- +----------------------------------------------------+ | "" #??# #???????????????????? | | #??# #???????????????????? | | ! #??####### ###"T"## #???????????????????? | | !! #??????? ?#"""## #???????????????????? | | ! #??????# ######## ##???????????????????? | | #??????######??????# #????????????????????? | | ######??????????????????# #????????????????????? | | ????????????????????????# #????????????????????? | | ???????????????????????## ##???????????????????? | | ???????????????????????# * #???????????????????? | | ???????????????????????# #???????????????????? | | ?????########??????????# #???????????????????? | | ?????#* #??????????# #???????????????????? | | ?????# """ #??????????# =#???????????????????? | | ###### T" #??????????## ##???????????????????? | | * + """ ##########??# #????????????????????? | | = = # + #??# #????????????????????? | | # ##### #??# #????????????????????? | | + #####+## #### #????????????????????? | | ## # """ # # * #????????????????????? | | ## # """ # # #########????????????? | | ## # """ # +^^ = # #???????????? | | # """ # # ^"""k # """ #???????????? | | # """ # # """ # """ #???????????? | | # # # ^""" # """ #???????????? | | ##+########## + @ + #???????????? | | # ## # ^g # """ #???????????? | | # """ ## # ^ # """ #???????????? | | # "Y" """ ## # # """ #???????????? | | # """ """ ## # "T" # #???????????? | | # ## # ##########???????????? | | ############# # #????????????????????? | | #??????######## < ######????????????????????? | | #?????????????# #?????????????????????????? | | #?????????????#####?????????????????????????? | | #???????????????????????????????????????????? | | #???????????????????????????????????????????? | | ######???????????????????????????????????????????? | | #????????????????????????????????????????????????? | | ?????????????????????????????????????????????????? | | ?????????????????????????????????????????????????? | | ?????????????????????????????????????????????????? | | | | | | | | | | | | | | | | | +----------------------------------------------------+ Best States ------------- Heat Dissipation 25 Energy Generation 14 Energy Capacity 250 Matter Stores 280 Matter Capacity 300 Sight Range 16 Terrain Scan Density 10 Evasion (%) 40 Targeting Accuracy 5 Recoil Reduction 2 Item Schematics ----------------- None Robot Schematics ------------------ None Fabricated ------------ Nothing Alien Tech Used ----------------- None Achievements -------------- Fist Fight Challenges ------------ None Game ------ Seed IntegratedHeavyRedistributor Manual? 0 Play Time 00:09:00 Cumulative 4.3 hours Start 2024.08.13 @ 14:13:40 End 2024.08.13 @ 14:20:37 Sessions 1 Manual Loads 0 Difficulty Rogue Special Mode None Game No. 4 Rogue 4 Adventurer 0 Explorer 0 Win Type - Total 0 Types 0/0/0/0/0/0/0/0/0 Lore% 1 Gallery% 8 Achievement% 17 Wizard Run 0 Options --------- Layout 1 ASCII 0 Keyboard 0 Movement Numpad Keybinds 0 Fullscreen 1 Font 24/Smallcaps Map View 50x35 Zoom Use 0% Tactical HUD 1 Map Filters NONE Filters NONE Steam 0 RUN: 51e79ac3-d25b-4b7c-ac72-b298f18ecc0f